[Event "*** Titled Tuesday Blitz"]
[Site "Chess.com"]
[Date "2020.05.19"]
[Round "1"]
[White "viktorskliarov"]
[Black "scabies1"]
[Result "1-0"]
[WhiteElo "2590"]
[BlackElo "2295"]
[TimeControl "180+1"]
[EndTime "12:07:09 PDT"]
[Termination "viktorskliarov won by resignation"]

1. e4 {[%clk 0:02:55.7]} 1... c5 {[%clk 0:03:00]} 2. Nf3 {[%clk 0:02:55.4]} 2...
e6 {[%clk 0:03:00.5]} 3. c3 {[%clk 0:02:54.8]} 3... Nf6 {[%clk 0:02:59.4]} 4.
Bd3 {[%clk 0:02:54.2]} 4... Nc6 {[%clk 0:02:58.1]} 5. Bc2 {[%clk 0:02:50.8]}
5... d5 {[%clk 0:02:50.4]} 6. e5 {[%clk 0:02:49.7]} 6... Nd7 {[%clk 0:02:50.4]}
7. d4 {[%clk 0:02:48.6]} 7... cxd4 {[%clk 0:02:43.6]} 8. cxd4 {[%clk 0:02:47.9]}
8... Nb4 {[%clk 0:02:43.9]} 9. Bb3 {[%clk 0:02:44.7]} 9... b6 {[%clk 0:02:42.9]}
10. a3 {[%clk 0:02:39.8]} 10... Nc6 {[%clk 0:02:41.5]} 11. O-O {[%clk
0:02:39.7]} 11... Ba6 {[%clk 0:02:39.9]} 12. Re1 {[%clk 0:02:39.1]} 12... Be7
{[%clk 0:02:35.9]} 13. Nc3 {[%clk 0:02:34.1]} 13... Rc8 {[%clk 0:02:31.7]} 14.
Bc2 {[%clk 0:01:53.6]} 14... Na5 {[%clk 0:02:25.4]} 15. Bd3 {[%clk 0:01:51.2]}
15... Bxd3 {[%clk 0:02:20.3]} 16. Qxd3 {[%clk 0:01:52.1]} 16... O-O {[%clk
0:02:16.2]} 17. b4 {[%clk 0:01:42.6]} 17... Nc4 {[%clk 0:02:10.7]} 18. Bf4
{[%clk 0:01:41.1]} 18... a6 {[%clk 0:01:59.4]} 19. Bg3 {[%clk 0:01:29.9]} 19...
b5 {[%clk 0:01:53.1]} 20. h4 {[%clk 0:01:24.1]} 20... Qc7 {[%clk 0:01:49.7]} 21.
Nxd5 {[%clk 0:01:11]} 21... exd5 {[%clk 0:01:38.4]} 22. e6 {[%clk 0:01:10.9]}
22... Bd6 {[%clk 0:01:04.7]} 23. exd7 {[%clk 0:01:10.2]} 23... Qxd7 {[%clk
0:01:04.2]} 24. Ng5 {[%clk 0:01:05.9]} 24... g6 {[%clk 0:01:01]} 25. Bxd6 {[%clk
0:00:53.1]} 25... Qxd6 {[%clk 0:00:53]} 26. g3 {[%clk 0:00:47.3]} 26... Rfe8
{[%clk 0:00:49.5]} 27. Kg2 {[%clk 0:00:42.6]} 27... Qf6 {[%clk 0:00:41.1]} 28.
Nf3 {[%clk 0:00:27.3]} 28... h6 {[%clk 0:00:21.4]} 29. h5 {[%clk 0:00:26.1]}
29... g5 {[%clk 0:00:19.8]} 30. Nh2 {[%clk 0:00:26.2]} 30... Nb2 {[%clk
0:00:16.7]} 31. Qd2 {[%clk 0:00:25.3]} 31... Nc4 {[%clk 0:00:16.4]} 32. Ng4
{[%clk 0:00:17.5]} 32... Qg7 {[%clk 0:00:13.8]} 33. Qd3 {[%clk 0:00:16]} 33...
Qh7 {[%clk 0:00:05.9]} 34. Nf6+ {[%clk 0:00:14.9]} 1-0

[Event "*** Titled Tuesday Blitz"]
[Site "Chess.com"]
[Date "2020.05.19"]
[Round "1"]
[White "velemajstor767276"]
[Black "ZarinaShafigullina"]
[Result "1-0"]
[WhiteElo "2641"]
[BlackElo "2341"]
[TimeControl "180+1"]
[EndTime "12:07:11 PDT"]
[Termination "velemajstor767276 won by resignation"]

1. d4 {[%clk 0:03:00.1]} 1... Nf6 {[%clk 0:02:59.7]} 2. Bg5 {[%clk 0:02:59.5]}
2... Ne4 {[%clk 0:02:56.2]} 3. h4 {[%clk 0:02:58.1]} 3... c5 {[%clk 0:02:55.6]}
4. dxc5 {[%clk 0:02:57.8]} 4... Qa5+ {[%clk 0:02:54]} 5. Nd2 {[%clk 0:02:57.7]}
5... Nxg5 {[%clk 0:02:52.2]} 6. hxg5 {[%clk 0:02:56.3]} 6... Qxc5 {[%clk
0:02:52.7]} 7. g6 {[%clk 0:02:56.1]} 7... fxg6 {[%clk 0:02:52.3]} 8. c3 {[%clk
0:02:56.6]} 8... e6 {[%clk 0:02:45.3]} 9. Qc2 {[%clk 0:02:54.6]} 9... Qf5 {[%clk
0:02:44.9]} 10. e4 {[%clk 0:02:53.2]} 10... Qf6 {[%clk 0:02:39.3]} 11. Ngf3
{[%clk 0:02:52.1]} 11... Nc6 {[%clk 0:02:38.7]} 12. Be2 {[%clk 0:02:33.3]} 12...
Bc5 {[%clk 0:02:37.8]} 13. Rd1 {[%clk 0:01:40.9]} 13... O-O {[%clk 0:02:32.8]}
14. Nc4 {[%clk 0:01:34.8]} 14... b5 {[%clk 0:02:01.5]} 15. e5 {[%clk 0:01:33.3]}
15... Qe7 {[%clk 0:01:44.7]} 16. Ncd2 {[%clk 0:01:18]} 16... b4 {[%clk
0:01:30.2]} 17. Ne4 {[%clk 0:01:15]} 17... bxc3 {[%clk 0:01:29.9]} 18. bxc3
{[%clk 0:01:05.7]} 18... Rf5 {[%clk 0:01:29]} 19. g4 {[%clk 0:00:44.9]} 19...
Rf4 {[%clk 0:01:25.8]} 20. Rxh7 {[%clk 0:00:15.3]} 20... Kxh7 {[%clk 0:00:31.5]}
21. Neg5+ {[%clk 0:00:14.2]} 21... Kg8 {[%clk 0:00:31.3]} 22. Qxg6 {[%clk
0:00:13.6]} 22... Bxf2+ {[%clk 0:00:23.1]} 23. Kxf2 {[%clk 0:00:10.8]} 23...
Qc5+ {[%clk 0:00:22.4]} 24. Kg2 {[%clk 0:00:09.2]} 24... Qe3 {[%clk 0:00:22]}
25. Qh7+ {[%clk 0:00:08.3]} 25... Kf8 {[%clk 0:00:21.3]} 26. Qh8+ {[%clk
0:00:08.2]} 26... Ke7 {[%clk 0:00:21.4]} 27. Qxg7+ {[%clk 0:00:08.7]} 27... Kd8
{[%clk 0:00:20.7]} 28. Nxe6+ {[%clk 0:00:08.1]} 28... Ke8 {[%clk 0:00:18.5]} 29.
Nxf4 {[%clk 0:00:06.9]} 29... Qxf4 {[%clk 0:00:18.3]} 30. Rh1 {[%clk 0:00:07.1]}
30... Kd8 {[%clk 0:00:16]} 31. Qf6+ {[%clk 0:00:06.3]} 31... Qxf6 {[%clk
0:00:15.3]} 32. exf6 {[%clk 0:00:07.2]} 32... d5 {[%clk 0:00:14.9]} 33. Rh8+
{[%clk 0:00:06.9]} 33... Kd7 {[%clk 0:00:15.6]} 34. f7 {[%clk 0:00:07.3]} 1-0

[Event "*** Titled Tuesday Blitz"]
[Site "Chess.com"]
[Date "2020.05.19"]
[Round "1"]
[White "attack2mateU"]
[Black "rynos0411"]
[Result "1-0"]
[WhiteElo "2627"]
[BlackElo "2328"]
[TimeControl "180+1"]
[EndTime "12:07:12 PDT"]
[Termination "attack2mateU won by resignation"]

1. e4 {[%clk 0:03:00.9]} 1... e5 {[%clk 0:02:57.7]} 2. Nf3 {[%clk 0:03:01.2]}
2... Nc6 {[%clk 0:02:57.4]} 3. Bb5 {[%clk 0:03:01.1]} 3... Nf6 {[%clk
0:02:56.5]} 4. d3 {[%clk 0:02:59.6]} 4... Bc5 {[%clk 0:02:55.7]} 5. Ba4 {[%clk
0:02:56.2]} 5... O-O {[%clk 0:02:50.7]} 6. O-O {[%clk 0:02:55.2]} 6... d6 {[%clk
0:02:50.2]} 7. c3 {[%clk 0:02:54.8]} 7... Qe7 {[%clk 0:02:40.2]} 8. Nbd2 {[%clk
0:02:49.5]} 8... a6 {[%clk 0:02:38.3]} 9. h3 {[%clk 0:02:45.9]} 9... b5 {[%clk
0:02:35.7]} 10. Bc2 {[%clk 0:02:45.6]} 10... Bb7 {[%clk 0:02:31.9]} 11. Re1
{[%clk 0:02:43.4]} 11... Rfe8 {[%clk 0:02:30]} 12. Nf1 {[%clk 0:02:42.6]} 12...
h6 {[%clk 0:02:28.7]} 13. Ng3 {[%clk 0:02:42.5]} 13... Qd7 {[%clk 0:02:23.1]}
14. Nh4 {[%clk 0:02:30.7]} 14... d5 {[%clk 0:02:18.2]} 15. Qf3 {[%clk
0:02:27.5]} 15... Nh7 {[%clk 0:02:09.3]} 16. Nhf5 {[%clk 0:02:20.6]} 16... Kh8
{[%clk 0:01:47.4]} 17. Qg4 {[%clk 0:01:40.7]} 17... Bf8 {[%clk 0:00:55.3]} 18.
Nxh6 {[%clk 0:01:38.9]} 18... Qxg4 {[%clk 0:00:30.7]} 19. Nxg4 {[%clk
0:01:39.8]} 19... d4 {[%clk 0:00:29.8]} 20. Bd2 {[%clk 0:01:18.4]} 20... Rad8
{[%clk 0:00:28.2]} 21. Rac1 {[%clk 0:01:17.4]} 21... dxc3 {[%clk 0:00:27.2]} 22.
bxc3 {[%clk 0:01:15.8]} 22... b4 {[%clk 0:00:26.3]} 23. Ne2 {[%clk 0:00:36.1]}
23... bxc3 {[%clk 0:00:22.7]} 24. Bxc3 {[%clk 0:00:37]} 24... Ng5 {[%clk
0:00:22.1]} 25. Ba4 {[%clk 0:00:27.2]} 25... Rxd3 {[%clk 0:00:18.8]} 26. Nxe5
{[%clk 0:00:25]} 26... Rxe5 {[%clk 0:00:08.8]} 27. Bxc6 {[%clk 0:00:24.6]} 27...
Rxe4 {[%clk 0:00:07.9]} 28. Bxb7 {[%clk 0:00:21.6]} 28... Ra4 {[%clk 0:00:03.2]}
29. Nf4 {[%clk 0:00:20.2]} 29... Rd8 {[%clk 0:00:02.8]} 30. Nh5 {[%clk
0:00:18.8]} 30... f6 {[%clk 0:00:02.5]} 31. Nxf6 {[%clk 0:00:17.2]} 31... gxf6
{[%clk 0:00:02.6]} 32. Bxf6+ {[%clk 0:00:16.8]} 32... Bg7 {[%clk 0:00:03.5]} 33.
Bxd8 {[%clk 0:00:16.6]} 33... Rxa2 {[%clk 0:00:04.4]} 34. Re8+ {[%clk
0:00:15.8]} 34... Kh7 {[%clk 0:00:04.4]} 35. Rxc7 {[%clk 0:00:15]} 35... Ne6
{[%clk 0:00:04.1]} 36. Rxe6 {[%clk 0:00:14.4]} 36... Kg8 {[%clk 0:00:03.9]} 37.
Rg6 {[%clk 0:00:13]} 37... Ra1+ {[%clk 0:00:04.1]} 38. Kh2 {[%clk 0:00:12.5]}
1-0

[Event "*** Titled Tuesday Blitz"]
[Site "Chess.com"]
[Date "2020.05.19"]
[Round "1"]
[White "harvsp123"]
[Black "AlanZhang"]
[Result "1-0"]
[WhiteElo "2532"]
[BlackElo "2208"]
[TimeControl "180+1"]
[EndTime "12:07:12 PDT"]
[Termination "harvsp123 won by resignation"]

1. e4 {[%clk 0:03:00.1]} 1... e5 {[%clk 0:03:00.5]} 2. Nf3 {[%clk 0:02:59.9]}
2... Nc6 {[%clk 0:03:01.1]} 3. Bb5 {[%clk 0:02:59.1]} 3... a6 {[%clk 0:03:01.2]}
4. Ba4 {[%clk 0:02:59.1]} 4... Nf6 {[%clk 0:03:01.3]} 5. d3 {[%clk 0:02:58]}
5... b5 {[%clk 0:03:00.5]} 6. Bb3 {[%clk 0:02:57.7]} 6... Be7 {[%clk 0:03:01]}
7. Nc3 {[%clk 0:02:53.7]} 7... O-O {[%clk 0:02:54.4]} 8. O-O {[%clk 0:02:52.2]}
8... d6 {[%clk 0:02:53.2]} 9. a3 {[%clk 0:02:51.9]} 9... Nd4 {[%clk 0:02:42.2]}
10. Nxd4 {[%clk 0:02:51.1]} 10... exd4 {[%clk 0:02:42]} 11. Ne2 {[%clk
0:02:51.5]} 11... c5 {[%clk 0:02:41.2]} 12. a4 {[%clk 0:02:49.7]} 12... Be6
{[%clk 0:02:27]} 13. Bg5 {[%clk 0:02:42.4]} 13... Bxb3 {[%clk 0:01:51.4]} 14.
cxb3 {[%clk 0:01:52.9]} 14... d5 {[%clk 0:01:23.4]} 15. Bxf6 {[%clk 0:01:06.9]}
15... Bxf6 {[%clk 0:01:22.1]} 16. Nf4 {[%clk 0:00:57.2]} 16... dxe4 {[%clk
0:00:53.4]} 17. dxe4 {[%clk 0:00:58.1]} 17... c4 {[%clk 0:00:38.4]} 18. Nd5
{[%clk 0:00:32.2]} 18... d3 {[%clk 0:00:32.6]} 19. axb5 {[%clk 0:00:32.1]} 19...
axb5 {[%clk 0:00:16.3]} 20. Rxa8 {[%clk 0:00:32.3]} 20... Qxa8 {[%clk
0:00:17.2]} 21. Nxf6+ {[%clk 0:00:29.5]} 21... gxf6 {[%clk 0:00:18.1]} 22. Qg4+
{[%clk 0:00:24.9]} 22... Kh8 {[%clk 0:00:17.6]} 23. Qf5 {[%clk 0:00:25.8]} 23...
Qc6 {[%clk 0:00:16.7]} 24. h4 {[%clk 0:00:13.3]} 24... Rd8 {[%clk 0:00:15.8]}
25. Rd1 {[%clk 0:00:10.1]} 25... d2 {[%clk 0:00:05.6]} 26. Qf4 {[%clk 0:00:07]}
26... Qd6 {[%clk 0:00:04.8]} 27. Qf3 {[%clk 0:00:06]} 27... cxb3 {[%clk
0:00:03.4]} 28. Qxb3 {[%clk 0:00:05.3]} 28... Qc6 {[%clk 0:00:02.8]} 29. Qxf7
{[%clk 0:00:04.3]} 29... Qxe4 {[%clk 0:00:02.7]} 30. Qxf6+ {[%clk 0:00:04.4]}
1-0

[Event "*** Titled Tuesday Blitz"]
[Site "Chess.com"]
[Date "2020.05.19"]
[Round "1"]
[White "Luibov_AN"]
[Black "ama18"]
[Result "0-1"]
[WhiteElo "2070"]
[BlackElo "2494"]
[TimeControl "180+1"]
[EndTime "12:07:12 PDT"]
[Termination "ama18 won by resignation"]

1. d4 {[%clk 0:03:00.8]} 1... Nf6 {[%clk 0:02:58.8]} 2. Nf3 {[%clk 0:02:57.9]}
2... e6 {[%clk 0:02:55.3]} 3. c4 {[%clk 0:02:57.2]} 3... a6 {[%clk 0:02:53.4]}
4. Nc3 {[%clk 0:02:56.8]} 4... d5 {[%clk 0:02:53.3]} 5. e3 {[%clk 0:02:56.3]}
5... dxc4 {[%clk 0:02:52.8]} 6. a4 {[%clk 0:02:54.9]} 6... b6 {[%clk 0:02:42.7]}
7. Bxc4 {[%clk 0:02:54.1]} 7... Bb7 {[%clk 0:02:42.5]} 8. O-O {[%clk 0:02:54]}
8... Be7 {[%clk 0:02:40.5]} 9. Qe2 {[%clk 0:02:51.3]} 9... c5 {[%clk 0:02:28.7]}
10. Rd1 {[%clk 0:02:46.7]} 10... Nbd7 {[%clk 0:02:24.4]} 11. d5 {[%clk
0:02:33.7]} 11... exd5 {[%clk 0:02:21.6]} 12. Nxd5 {[%clk 0:02:33.1]} 12... Nxd5
{[%clk 0:02:21.4]} 13. Bxd5 {[%clk 0:02:33.1]} 13... Bxd5 {[%clk 0:02:21.8]} 14.
Rxd5 {[%clk 0:02:33.1]} 14... Qc7 {[%clk 0:02:22.4]} 15. e4 {[%clk 0:02:23.2]}
15... O-O {[%clk 0:02:16]} 16. g3 {[%clk 0:02:20.9]} 16... Rfd8 {[%clk
0:02:13.5]} 17. Bf4 {[%clk 0:02:18.3]} 17... Qc6 {[%clk 0:02:11.1]} 18. b3
{[%clk 0:02:04.9]} 18... Nf6 {[%clk 0:02:07.1]} 19. Ne5 {[%clk 0:02:00.2]} 19...
Qe6 {[%clk 0:01:57.9]} 20. Rxd8+ {[%clk 0:01:57.7]} 20... Rxd8 {[%clk
0:01:58.8]} 21. f3 {[%clk 0:01:57.5]} 21... Bd6 {[%clk 0:01:23.1]} 22. Rd1
{[%clk 0:01:19.6]} 22... Re8 {[%clk 0:01:17.6]} 23. Nc4 {[%clk 0:01:01.6]} 23...
Bxf4 {[%clk 0:01:12.3]} 24. gxf4 {[%clk 0:01:01.3]} 24... b5 {[%clk 0:00:52.2]}
25. f5 {[%clk 0:00:51.3]} 25... Qxf5 {[%clk 0:00:40.4]} 26. axb5 {[%clk
0:00:47.8]} 26... axb5 {[%clk 0:00:40.6]} 27. Nd6 {[%clk 0:00:43]} 27... Qg5+
{[%clk 0:00:40.3]} 28. Kh1 {[%clk 0:00:42.4]} 28... Rd8 {[%clk 0:00:29.7]} 29.
Rg1 {[%clk 0:00:40.2]} 29... Qf4 {[%clk 0:00:22.8]} 30. Nf5 {[%clk 0:00:30.9]}
30... Rd2 {[%clk 0:00:16.3]} 31. Rxg7+ {[%clk 0:00:30]} 31... Kf8 {[%clk
0:00:15.6]} 32. Qg2 {[%clk 0:00:21.7]} 32... Rxg2 {[%clk 0:00:13.8]} 33. Kxg2
{[%clk 0:00:21.6]} 33... Qxf5 {[%clk 0:00:10.6]} 34. exf5 {[%clk 0:00:20.9]}
34... Kxg7 {[%clk 0:00:10.5]} 0-1

[Event "*** Titled Tuesday Blitz"]
[Site "Chess.com"]
[Date "2020.05.19"]
[Round "1"]
[White "2007checkmate"]
[Black "djamir"]
[Result "0-1"]
[WhiteElo "2393"]
[BlackElo "2739"]
[TimeControl "180+1"]
[EndTime "12:07:14 PDT"]
[Termination "djamir won by resignation"]

1. Nc3 {[%clk 0:03:00.9]} 1... d5 {[%clk 0:02:52.3]} 2. d4 {[%clk 0:03:00.4]}
2... c6 {[%clk 0:02:51.4]} 3. Bf4 {[%clk 0:03:00.1]} 3... Bf5 {[%clk 0:02:51.4]}
4. f3 {[%clk 0:02:58.6]} 4... e6 {[%clk 0:02:51.3]} 5. g4 {[%clk 0:02:53.1]}
5... Bg6 {[%clk 0:02:51.3]} 6. h4 {[%clk 0:02:52.9]} 6... h5 {[%clk 0:02:51.6]}
7. e3 {[%clk 0:02:51.8]} 7... hxg4 {[%clk 0:02:44.7]} 8. h5 {[%clk 0:02:45.9]}
8... Rxh5 {[%clk 0:02:39.9]} 9. Rxh5 {[%clk 0:02:43.9]} 9... Bxh5 {[%clk
0:02:40.8]} 10. Qe2 {[%clk 0:02:30.5]} 10... gxf3 {[%clk 0:02:39.3]} 11. Nxf3
{[%clk 0:02:29.5]} 11... Bd6 {[%clk 0:02:32.3]} 12. Qh2 {[%clk 0:02:25.9]} 12...
Bxf4 {[%clk 0:02:24.8]} 13. Qxf4 {[%clk 0:02:22]} 13... Bxf3 {[%clk 0:02:24.2]}
14. Qxf3 {[%clk 0:02:22.9]} 14... Qh4+ {[%clk 0:02:24.3]} 15. Kd2 {[%clk
0:02:20.2]} 15... Nf6 {[%clk 0:02:24.1]} 16. Bd3 {[%clk 0:02:17.3]} 16... Ke7
{[%clk 0:02:13.5]} 17. Rh1 {[%clk 0:02:14.3]} 17... Qg5 {[%clk 0:02:13.2]} 18.
Rh8 {[%clk 0:02:13.5]} 18... Ne8 {[%clk 0:02:04]} 19. Qh3 {[%clk 0:01:42.7]}
19... Nd7 {[%clk 0:02:00.4]} 20. Ne2 {[%clk 0:01:39.7]} 20... Rd8 {[%clk
0:01:55.8]} 21. Nf4 {[%clk 0:01:39.5]} 21... Nef6 {[%clk 0:01:39.3]} 22. Rxd8
{[%clk 0:01:37.8]} 22... Kxd8 {[%clk 0:01:40.2]} 23. Qxe6 {[%clk 0:01:32.8]}
23... Ne4+ {[%clk 0:01:01.2]} 24. Bxe4 {[%clk 0:01:17.9]} 24... Qxf4 {[%clk
0:01:00.1]} 25. Qxd7+ {[%clk 0:01:05.2]} 25... Kxd7 {[%clk 0:00:58.6]} 26. exf4
{[%clk 0:01:06.1]} 26... dxe4 {[%clk 0:00:58.8]} 27. f5 {[%clk 0:01:06.7]} 27...
Kd6 {[%clk 0:00:55.9]} 28. c4 {[%clk 0:01:04.7]} 28... b5 {[%clk 0:00:45.5]} 29.
b3 {[%clk 0:01:02.3]} 29... bxc4 {[%clk 0:00:30.1]} 30. bxc4 {[%clk 0:01:03.2]}
30... c5 {[%clk 0:00:30.7]} 31. Ke3 {[%clk 0:00:36.4]} 31... cxd4+ {[%clk
0:00:30.8]} 32. Kxd4 {[%clk 0:00:37.3]} 32... e3 {[%clk 0:00:31.4]} 33. Kxe3
{[%clk 0:00:36.3]} 33... Kc5 {[%clk 0:00:31.8]} 34. Kd3 {[%clk 0:00:33.8]} 34...
a5 {[%clk 0:00:31.7]} 35. Kc3 {[%clk 0:00:20.2]} 35... a4 {[%clk 0:00:31]} 36.
Kd3 {[%clk 0:00:19.8]} 36... g5 {[%clk 0:00:30.9]} 37. Ke4 {[%clk 0:00:11.5]}
37... Kxc4 {[%clk 0:00:29.5]} 38. Ke5 {[%clk 0:00:11.9]} 38... a3 {[%clk
0:00:22.2]} 39. Kf6 {[%clk 0:00:12]} 39... g4 {[%clk 0:00:22]} 40. Kxf7 {[%clk
0:00:12.5]} 40... g3 {[%clk 0:00:22.9]} 41. Ke6 {[%clk 0:00:13]} 41... g2 {[%clk
0:00:23.8]} 42. f6 {[%clk 0:00:13.5]} 42... g1=Q {[%clk 0:00:24.7]} 43. f7
{[%clk 0:00:14.2]} 43... Qc5 {[%clk 0:00:24.8]} 0-1

[Event "*** Titled Tuesday Blitz"]
[Site "Chess.com"]
[Date "2020.05.19"]
[Round "1"]
[White "IljaJoke"]
[Black "Zmeeed63"]
[Result "1-0"]
[WhiteElo "2518"]
[BlackElo "2187"]
[TimeControl "180+1"]
[EndTime "12:07:14 PDT"]
[Termination "IljaJoke won by checkmate"]

1. d4 {[%clk 0:03:00.9]} 1... Nf6 {[%clk 0:02:58.8]} 2. c4 {[%clk 0:02:59.8]}
2... e6 {[%clk 0:02:58.2]} 3. g3 {[%clk 0:02:59.3]} 3... d5 {[%clk 0:02:56]} 4.
Nf3 {[%clk 0:02:59.5]} 4... dxc4 {[%clk 0:02:54.6]} 5. Bg2 {[%clk 0:02:59.7]}
5... Nc6 {[%clk 0:02:54.5]} 6. O-O {[%clk 0:02:56.2]} 6... Rb8 {[%clk
0:02:53.8]} 7. a4 {[%clk 0:02:43.6]} 7... a6 {[%clk 0:02:53.2]} 8. Nfd2 {[%clk
0:02:32.5]} 8... Na5 {[%clk 0:02:51.3]} 9. e3 {[%clk 0:02:29.8]} 9... Be7 {[%clk
0:02:50.7]} 10. Qc2 {[%clk 0:02:21]} 10... Nd5 {[%clk 0:02:24.8]} 11. Nxc4
{[%clk 0:02:17.2]} 11... Nb4 {[%clk 0:02:17.7]} 12. Qc3 {[%clk 0:02:09.1]} 12...
Nxc4 {[%clk 0:02:17.5]} 13. Qxc4 {[%clk 0:02:09.3]} 13... b5 {[%clk 0:02:18]}
14. Qe2 {[%clk 0:02:05.6]} 14... Bb7 {[%clk 0:02:05.2]} 15. Bxb7 {[%clk
0:02:04.4]} 15... Rxb7 {[%clk 0:02:06.1]} 16. axb5 {[%clk 0:02:04.7]} 16... axb5
{[%clk 0:02:05.6]} 17. Nc3 {[%clk 0:02:05.3]} 17... Qb8 {[%clk 0:01:59.1]} 18.
e4 {[%clk 0:01:54.4]} 18... O-O {[%clk 0:01:57.6]} 19. Rd1 {[%clk 0:01:54]}
19... Rd8 {[%clk 0:01:50.7]} 20. Bf4 {[%clk 0:01:50.3]} 20... Bd6 {[%clk
0:01:25.5]} 21. Be3 {[%clk 0:01:48.4]} 21... c6 {[%clk 0:01:05.4]} 22. Kg2
{[%clk 0:01:48]} 22... e5 {[%clk 0:01:02.7]} 23. dxe5 {[%clk 0:01:45.2]} 23...
Bxe5 {[%clk 0:01:03.6]} 24. f4 {[%clk 0:01:44.8]} 24... Bd6 {[%clk 0:01:01.2]}
25. e5 {[%clk 0:01:16]} 25... Bf8 {[%clk 0:01:00.7]} 26. Ne4 {[%clk 0:01:16.1]}
26... Nd5 {[%clk 0:00:54.9]} 27. Bc5 {[%clk 0:01:15.4]} 27... Bxc5 {[%clk
0:00:52.4]} 28. Nxc5 {[%clk 0:01:16.3]} 28... Ra7 {[%clk 0:00:53]} 29. Rxa7
{[%clk 0:01:14.4]} 29... Qxa7 {[%clk 0:00:53.9]} 30. Ne4 {[%clk 0:00:52.6]}
30... Ra8 {[%clk 0:00:53.3]} 31. Rd3 {[%clk 0:00:42.9]} 31... Qa4 {[%clk
0:00:43.9]} 32. Nd6 {[%clk 0:00:40.9]} 32... Qb4 {[%clk 0:00:37.9]} 33. Rd2
{[%clk 0:00:26.2]} 33... Ra1 {[%clk 0:00:31.6]} 34. Ne4 {[%clk 0:00:16.8]} 34...
Rb1 {[%clk 0:00:28.5]} 35. e6 {[%clk 0:00:16.1]} 35... fxe6 {[%clk 0:00:28.1]}
36. Ng5 {[%clk 0:00:16.5]} 36... e5 {[%clk 0:00:21.4]} 37. fxe5 {[%clk
0:00:14.2]} 37... Qc5 {[%clk 0:00:22.3]} 38. e6 {[%clk 0:00:13]} 38... Ne3+
{[%clk 0:00:21.2]} 39. Qxe3 {[%clk 0:00:09.3]} 39... Qxe3 {[%clk 0:00:22.1]} 40.
Rd8# {[%clk 0:00:09.2]} 1-0

[Event "*** Titled Tuesday Blitz"]
[Site "Chess.com"]
[Date "2020.05.19"]
[Round "1"]
[White "S-Fazulyanov"]
[Black "marszach123"]
[Result "1-0"]
[WhiteElo "2517"]
[BlackElo "2181"]
[TimeControl "180+1"]
[EndTime "12:07:14 PDT"]
[Termination "S-Fazulyanov won on time"]

1. e4 {[%clk 0:03:00.9]} 1... c5 {[%clk 0:02:59.8]} 2. Nf3 {[%clk 0:03:00.8]}
2... d6 {[%clk 0:03:00.2]} 3. d4 {[%clk 0:03:00.3]} 3... cxd4 {[%clk 0:03:00.6]}
4. Nxd4 {[%clk 0:03:01.2]} 4... Nf6 {[%clk 0:03:01.1]} 5. Nc3 {[%clk 0:03:01.7]}
5... a6 {[%clk 0:03:01.6]} 6. g3 {[%clk 0:03:00.6]} 6... e5 {[%clk 0:03:00.5]}
7. Nde2 {[%clk 0:03:00.2]} 7... b5 {[%clk 0:02:59.7]} 8. Bg2 {[%clk 0:03:00.1]}
8... Bb7 {[%clk 0:02:59.6]} 9. O-O {[%clk 0:02:59.6]} 9... Be7 {[%clk
0:02:57.4]} 10. a4 {[%clk 0:02:59.2]} 10... b4 {[%clk 0:02:49.4]} 11. Nd5 {[%clk
0:02:58]} 11... Nxd5 {[%clk 0:02:45.3]} 12. exd5 {[%clk 0:02:57.5]} 12... a5
{[%clk 0:02:39.5]} 13. f4 {[%clk 0:02:53.3]} 13... Nd7 {[%clk 0:02:35.3]} 14.
Be3 {[%clk 0:02:47.9]} 14... O-O {[%clk 0:02:33.1]} 15. c3 {[%clk 0:02:47.7]}
15... bxc3 {[%clk 0:02:26.6]} 16. Nxc3 {[%clk 0:02:36.4]} 16... Ba6 {[%clk
0:02:23.1]} 17. Rf2 {[%clk 0:02:32.4]} 17... Rb8 {[%clk 0:02:12.3]} 18. Bh3
{[%clk 0:02:31.1]} 18... Bf6 {[%clk 0:02:03]} 19. Ne4 {[%clk 0:02:25.3]} 19...
exf4 {[%clk 0:01:59.1]} 20. Bxf4 {[%clk 0:02:12.7]} 20... Bxb2 {[%clk
0:01:32.4]} 21. Rb1 {[%clk 0:01:52.4]} 21... Be5 {[%clk 0:01:32]} 22. Nxd6
{[%clk 0:01:45.3]} 22... Rxb1 {[%clk 0:01:26.2]} 23. Qxb1 {[%clk 0:01:43.6]}
23... Bd4 {[%clk 0:01:24.6]} 24. Qf5 {[%clk 0:01:33.2]} 24... Qe7 {[%clk
0:00:51.3]} 25. Qe4 {[%clk 0:01:02.7]} 25... Qxe4 {[%clk 0:00:33.8]} 26. Nxe4
{[%clk 0:01:03.6]} 26... Nc5 {[%clk 0:00:20.4]} 27. Nxc5 {[%clk 0:00:47.6]}
27... Bxc5 {[%clk 0:00:20.1]} 28. Kg2 {[%clk 0:00:48.5]} 28... Bxf2 {[%clk
0:00:19.7]} 29. Kxf2 {[%clk 0:00:49.4]} 29... Rd8 {[%clk 0:00:17.7]} 30. d6
{[%clk 0:00:49.6]} 30... Bc4 {[%clk 0:00:15.1]} 31. Bg2 {[%clk 0:00:34.9]} 31...
Be6 {[%clk 0:00:11.1]} 32. Ke3 {[%clk 0:00:29.7]} 32... Bd7 {[%clk 0:00:10.9]}
33. Kd4 {[%clk 0:00:29.5]} 33... Bxa4 {[%clk 0:00:10.7]} 34. Kc5 {[%clk
0:00:30.1]} 34... Bd7 {[%clk 0:00:09.7]} 35. Kb6 {[%clk 0:00:30.4]} 35... a4
{[%clk 0:00:09.3]} 36. Kc7 {[%clk 0:00:30.6]} 36... Re8 {[%clk 0:00:01]} 37.
Kxd7 {[%clk 0:00:30.9]} 1-0